fUSD/lending_fUSD_20250824
["ID","MTS","AMOUNT","RATE_DAILY","PERIOD"]
[381080942,1756011034048,-995.96131148,0.00013999,2]
[381080943,1756011034057,-42756.44200962,0.00013999,2]
[381080944,1756011034067,-154.296498,0.00013999,2]
[381080945,1756011034076,-151.0,0.00013999,2]
[381080946,1756011034085,-151.0,0.00013999,2]
[381080947,1756011034094,-151.0,0.00013999,2]
[381080948,1756011034104,-151.0,0.00013999,2]
[381080949,1756011034113,-151.0,0.00013999,2]
[381080950,1756011034123,-151.0,0.00013999,2]
[381080951,1756011034132,-151.0,0.00013999,2]
[381080952,1756011034142,-215.8964288,0.00014,2]
[381080953,1756011034151,-879.0,0.00014,2]
[381080954,1756011034161,-500.0,0.00014,2]
[381080955,1756011034171,-500.0,0.00014,2]
[381080956,1756011034180,-267.35466456,0.00014,2]
[381080957,1756011034190,-14031.55537864,0.00014,3]
[381080958,1756011034199,-250.18490232,0.00014,7]
[381080959,1756011034209,-151.0,0.00014,2]
[381080960,1756011034218,-151.0,0.00014,2]
[381080961,1756011034228,-269.577733,0.00014,2]
[381080962,1756011034237,-247.174829,0.00014,2]
[381080963,1756011034247,-247.174829,0.00014,2]
[381080964,1756011034256,-247.174829,0.00014,2]
[381080965,1756011034265,-247.174829,0.00014,2]
[381080966,1756011034275,-256.368255,0.00014,2]
[381080967,1756011034284,-256.368255,0.00014,2]
[381080968,1756011034294,-256.368255,0.00014,2]
[381080969,1756011034304,-256.368255,0.00014,2]
[381080970,1756011034313,-282.654485,0.00014,2]
[381080971,1756011034323,-282.654485,0.00014,2]
[381080972,1756011034332,-282.654485,0.00014,2]
[381080973,1756011034342,-282.654485,0.00014,2]
[381080974,1756011034352,-200.0,0.00014001,2]
[381080975,1756011034362,-151.0,0.00014001,2]
[381080976,1756011034371,-755.862245,0.00014001,2]
[381080977,1756011034381,-755.862245,0.00014001,2]
[381080978,1756011034390,-755.862245,0.00014001,2]
[381080979,1756011034400,-755.862245,0.00014001,2]
[381080980,1756011034409,-1000.0,0.00014002,2]
[381080981,1756011034419,-500.0,0.00014004,2]
[381080982,1756011034429,-500.0,0.00014119,2]
[381080983,1756011034439,-433.0,0.00014146,2]
[381080984,1756011034448,-1000.0,0.00014246,2]
[381080985,1756011034458,-1118.93,0.00014246,2]
[381080986,1756011034467,-558.13,0.00014246,2]
[381080987,1756011034476,-300.0,0.00014247,2]
[381080988,1756011034486,-151.0,0.00014247,2]
[381080989,1756011034495,-879.0,0.00014274,2]
[381080990,1756011034506,-500.0,0.00014274,2]
[381080991,1756011034517,-500.0,0.00014274,2]
[381080992,1756011034527,-151.0,0.00014274,2]
[381080993,1756011034536,-587.0,0.00014326,2]
[381080994,1756011034545,-731.0,0.00014381,2]
[381080995,1756011034555,-151.0,0.00014383,2]
[381080996,1756011034564,-151.0,0.00014383,2]
[381080997,1756011034573,-151.0,0.00014383,2]
[381080998,1756011034582,-152.156403,0.00014383,2]
[381080999,1756011034591,-873.41,0.00014384,2]
[381081000,1756011034600,-500.0,0.00014384,2]
[381081001,1756011034609,-151.0,0.00014384,2]
[381081002,1756011034619,-151.0,0.00014384,2]
[381081003,1756011034628,-6365.67793338,0.000145,2]
[381081004,1756011034637,-300.0,0.00014521,2]
[381081005,1756011034647,-879.0,0.00014548,2]
[381081006,1756011034656,-500.0,0.00014548,2]
[381081007,1756011034666,-500.0,0.00014548,2]
[381081008,1756011034675,-1085.0,0.00014579,2]
[381081009,1756011034684,-151.0,0.00014588,2]
[381081010,1756011034693,-151.0,0.00014606,2]
[381081011,1756011034703,-151.0,0.00014616,2]
[381081012,1756011034712,-151.0,0.00014617,2]
[381081013,1756011034721,-156.65684748,0.00014722,2]
[381081014,1756011034730,-150.90354151,0.0001474,2]
[381081015,1756011034739,-151.0,0.00014745,2]
[381081016,1756011034748,-558.13,0.00014794,2]
[381081017,1756011034757,-300.0,0.00014795,2]
[381081018,1756011034766,-879.0,0.00014822,2]
[381081019,1756011034775,-500.0,0.00014822,2]
[381081020,1756011034785,-221.86666992,0.000149,2]
[381081021,1756011034794,-221.8666699,0.000149,2]
[381081022,1756011034803,-221.8666699,0.000149,2]
[381081023,1756011034813,-187.0,0.0001497,2]
[381081024,1756011034822,-1000.0,0.00014991,2]
[381081025,1756011034831,-651.15335711,0.00015,10]
[381081026,1756011034840,-250.0,0.00015,2]
[381081027,1756011034850,-873.41,0.00015068,2]
[381081028,1756011034860,-300.0,0.00015068,2]
[381081029,1756011034869,-300.0,0.00015069,2]
[381081030,1756011034879,-298.26089446,0.00015073,2]
[381081031,1756011034888,-879.0,0.00015096,2]
[381081032,1756011034898,-500.0,0.00015096,2]
[381081033,1756011034908,-151.16,0.00015096,2]
[381081034,1756011034918,-151.0,0.00015142,2]
[381081035,1756011034927,-151.0,0.00015142,2]
[381081036,1756011034936,-171.6154,0.00015293,2]
[381081037,1756011034946,-14.69707368,0.000153,2]
[381081038,1756011034961,-1400.29971831,0.000153,2]
[381081039,1756011034972,-102.64320801,0.000153,2]
[381081040,1756011034981,-247.174829,0.000153,2]
[381081041,1756011034990,-247.174829,0.000153,2]
[381081042,1756011035000,-247.174829,0.000153,2]
[381081043,1756011035009,-247.174829,0.000153,2]
[381081044,1756011035018,-558.13,0.00015342,2]
[381081045,1756011035027,-300.0,0.00015343,2]
[381081046,1756011035036,-1085.0,0.00015347,2]
[381081047,1756011035045,-201.113158,0.00015347,2]
[381081048,1756011035054,-151.0,0.00015347,2]
[381081049,1756011035063,-151.0,0.00015347,2]
[381081050,1756011035073,-151.0,0.00015347,2]
[381081051,1756011035082,-151.0,0.00015347,2]
[381081052,1756011035091,-151.0,0.00015347,2]
[381081053,1756011035100,-605.0,0.0001537,2]
[381081054,1756011035110,-879.0,0.0001537,2]
[381081055,1756011035119,-500.0,0.0001537,2]
[381081056,1756011035128,-497.86348787,0.000154,2]
[381081057,1756011035137,-16370.31930325,0.000154,2]
[381081058,1756011035146,-151.0,0.000154,2]
[381081059,1756011035156,-755.862245,0.000154,2]
[381081060,1756011035165,-755.862245,0.000154,2]
[381081061,1756011035174,-755.862245,0.000154,2]
[381081062,1756011035183,-755.862245,0.000154,2]
[381081063,1756011035192,-157.521287,0.000154,2]
[381081064,1756011035202,-151.0,0.000154,2]
[381081065,1756011035211,-151.0,0.000154,2]
[381081066,1756011035221,-736.0,0.00015441,2]
[381081067,1756011035230,-256.368255,0.00015484,2]
[381081068,1756011035240,-256.368255,0.00015484,2]
[381081069,1756011035249,-256.368255,0.00015484,2]
[381081070,1756011035259,-256.368255,0.00015484,2]
[381081071,1756011035268,-282.654485,0.00015484,2]
[381081072,1756011035277,-282.654485,0.00015484,2]
[381081073,1756011035560,-282.654485,0.00015484,2]
[381081074,1756011035570,-282.654485,0.00015484,2]
[381081075,1756011035579,-150.90354151,0.00015501,2]
[381081076,1756011035590,-2005.8657454,0.000156,2]
[381081077,1756011035599,-300.0,0.00015617,2]
[381081078,1756011035609,-879.0,0.00015644,2]
[381081079,1756011035619,-500.0,0.00015644,2]
[381081080,1756011035628,-823.0,0.00015729,2]
[381081081,1756011035639,-873.41,0.00015753,2]
[381081082,1756011035649,-151.0,0.00015881,2]
[381081083,1756011035658,-558.13,0.0001589,2]
[381081084,1756011035667,-301.26729071,0.00015891,2]
[381081085,1756011035676,-879.0,0.00015918,2]
[381081086,1756011035685,-500.0,0.00015918,2]
[381081087,1756011035695,-13418.16970596,0.00015956,2]
[381081088,1756011035704,-2433.41713233,0.00016,2]
[381081089,1756011035713,-554.04627419,0.00016,2]
[381081090,1756011035723,-300.85672,0.00016,2]
[381081091,1756011035732,-151.0,0.00016,2]
[381081092,1756011035742,-458.63746581,0.00016,3]
[381081093,1756011035751,-212.11701231,0.00016,3]
[381081094,1756011035760,-151.0,0.00016116,2]
[381081095,1756011035769,-151.0,0.00016116,2]
[381081096,1756011035778,-1000.0,0.00016133,2]
[381081097,1756011035788,-183.0,0.0001615,2]
[381081098,1756011035797,-1085.0,0.00016155,2]
[381081099,1756011035806,-879.0,0.00016192,2]
[381081100,1756011035816,-500.0,0.00016192,2]
[381081101,1756011035825,-150.90354151,0.00016262,2]
[381081102,1756011035835,-167.77,0.00016282,2]
[381081103,1756011035844,-300.0,0.00016329,2]
[381081104,1756011035854,-408.42,0.00016329,2]
[381081105,1756011035863,-150.0,0.00016329,2]
[381081106,1756011035873,-200.0,0.0001634,2]
[381081107,1756011035883,-175.28,0.00016411,2]
[381081108,1756011035893,-152.254338,0.00016428,2]
[381081109,1756011035902,-151.0,0.00016438,2]
[381081110,1756011035912,-500.0,0.00016438,2]
[381081111,1756011035922,-500.0,0.00016438,2]
[381081112,1756011035931,-558.13,0.00016438,2]
[381081113,1756011035942,-873.41,0.00016438,2]
[381081114,1756011035951,-300.0,0.00016438,2]
[381081115,1756011035961,-666.0,0.00016438,3]
[381081116,1756011035970,-600.0,0.00016438,2]
[381081117,1756011035980,-600.0,0.00016438,2]
[381081118,1756011035989,-600.0,0.00016438,2]
[381081119,1756011035999,-600.0,0.00016438,2]
[381081120,1756011036008,-600.0,0.00016438,2]
[381081121,1756011036017,-600.0,0.00016438,2]
[381081122,1756011036027,-600.0,0.00016438,2]
[381081123,1756011036036,-600.0,0.00016438,2]
[381081124,1756011036046,-600.0,0.00016438,2]
[381081125,1756011036055,-600.0,0.00016438,2]
[381081126,1756011036065,-600.0,0.00016438,2]
[381081127,1756011036074,-309.29654756,0.00016442,2]
[381081128,1756011036086,-879.0,0.00016466,2]
[381081129,1756011036095,-500.0,0.00016466,2]
[381081130,1756011036105,-158.71462,0.00016575,2]
[381081131,1756011036115,-247.174829,0.00016575,2]
[381081132,1756011036124,-247.174829,0.00016575,2]
[381081133,1756011036134,-200.0,0.00016575,2]
[381081134,1756011036143,-200.0,0.00016575,2]
[381081135,1756011036152,-200.0,0.00016575,2]
[381081136,1756011036162,-247.174829,0.00016575,2]
[381081137,1756011036171,-200.0,0.00016575,2]
[381081138,1756011036180,-200.0,0.00016575,2]
[381081139,1756011036190,-200.0,0.00016575,2]
[381081140,1756011036200,-200.0,0.00016575,2]
[381081141,1756011036211,-200.0,0.00016575,2]
[381081142,1756011036221,-247.174829,0.00016575,2]
[381081143,1756011036231,-200.0,0.00016575,2]
[381081144,1756011036240,-200.0,0.00016575,2]
[381081145,1756011036250,-200.0,0.00016575,2]
[381081146,1756011036260,-200.0,0.00016575,2]
[381081147,1756011036270,-200.0,0.00016575,2]
[381081148,1756011036279,-200.0,0.00016575,2]
[381081149,1756011036289,-200.0,0.00016575,2]
[381081150,1756011036298,-200.0,0.00016575,2]
[381081151,1756011036309,-200.0,0.00016575,2]
[381081152,1756011036319,-200.0,0.00016575,2]
[381081153,1756011036330,-200.0,0.00016575,2]
[381081154,1756011036340,-200.0,0.00016575,2]
[381081155,1756011036349,-200.0,0.00016575,2]
[381081156,1756011036358,-200.0,0.00016575,2]
[381081157,1756011036368,-200.0,0.00016575,2]
[381081158,1756011036377,-200.0,0.00016575,2]
[381081159,1756011036387,-200.0,0.00016575,2]
[381081160,1756011036398,-200.0,0.00016575,2]
[381081161,1756011036409,-200.0,0.00016575,2]
[381081162,1756011036420,-200.0,0.00016575,2]
[381081163,1756011036430,-201.288994,0.00016575,2]
[381081164,1756011036440,-151.0,0.00016575,2]
[381081165,1756011036450,-151.0,0.00016575,2]
[381081166,1756011036460,-174.906534,0.00016575,2]
[381081167,1756011036470,-151.0,0.00016575,2]
[381081168,1756011036479,-535.85,0.00016575,2]
[381081169,1756011036489,-2370.18,0.00016575,2]
[381081170,1756011036499,-173.7,0.00016575,2]
[381081171,1756011036508,-408.42,0.00016575,2]
[381081172,1756011036521,-352.86478907,0.000166,2]
[381081173,1756011036530,-1000.0,0.00016657,2]
[381081174,1756011036539,-500.0,0.00016712,2]
[381081175,1756011036549,-500.0,0.00016712,2]
[381081176,1756011036558,-879.0,0.0001674,2]
[381081177,1756011036567,-500.0,0.0001674,2]
[381081178,1756011036577,-156.0,0.000168,3]
[381081179,1756011036586,-156.0,0.000168,3]
[381081180,1756011036595,-156.0,0.000168,2]
[381081181,1756011036605,-1252.0,0.00016844,2]
[381081182,1756011036614,-164.73,0.00016894,2]
[381081183,1756011036624,-5000.0,0.000169,2]
[381081184,1756011036636,-250.19755,0.000169,2]
[381081185,1756011036645,-755.862245,0.000169,2]
[381081186,1756011036655,-755.862245,0.000169,2]
[381081187,1756011036664,-755.862245,0.000169,2]
[381081188,1756011036673,-755.862245,0.000169,2]
[381081189,1756011036683,-340.98665039,0.000169,2]
[381081190,1756011036693,-256.368255,0.000169,2]
[381081191,1756011036702,-256.368255,0.000169,2]
[381081192,1756011036711,-256.368255,0.000169,2]
[381081193,1756011036721,-256.368255,0.000169,2]
[381081194,1756011036730,-282.654485,0.000169,2]
[381081195,1756011036739,-282.654485,0.000169,2]
[381081196,1756011036748,-282.654485,0.000169,2]
[381081197,1756011036758,-282.654485,0.000169,2]
[381081198,1756011036768,-151.0,0.000169,2]
[381081199,1756011036777,-152.234041,0.000169,2]
[381081200,1756011036786,-500.40354068,0.00016973,2]
[381081201,1756011036795,-500.0,0.00016973,2]
[381081202,1756011036804,-500.0,0.00016973,2]
[381081203,1756011036814,-500.0,0.00016973,2]
[381081204,1756011036823,-500.0,0.00016973,2]
[381081205,1756011036833,-500.0,0.00016973,2]
[381081206,1756011036842,-500.0,0.00016973,2]
[381081207,1756011036852,-500.44651476,0.00016973,2]
[381081208,1756011036861,-500.0,0.00016973,2]
[381081209,1756011036870,-500.0,0.00016973,2]
[381081210,1756011036879,-500.22135865,0.00016973,2]
[381081211,1756011036889,-500.0,0.00016973,2]
[381081212,1756011036898,-471.28206866,0.00016973,2]
[381081213,1756011036907,-164.1657468,0.00016973,2]
[381081214,1756011036916,-500.0,0.00016973,2]
[381081215,1756011036926,-500.0,0.00016973,2]
[381081216,1756011036935,-500.0,0.00016973,2]
[381081217,1756011036944,-522.23685609,0.00016973,2]
[381081218,1756011036954,-276.19323253,0.00016973,2]
[381081219,1756011036963,-500.0,0.00016973,2]
[381081220,1756011036972,-500.0,0.00016973,2]
[381081221,1756011036981,-500.0,0.00016986,2]
[381081222,1756011036995,-500.0,0.00016986,2]
[381081223,1756011037004,-558.13,0.00016986,2]
[381081224,1756011037014,-300.0,0.00016999,2]
[381081225,1756011037024,-300.0,0.00016999,2]
[381081226,1756011037034,-300.0,0.00016999,2]
[381081227,1756011037044,-300.0,0.00016999,2]
[381081228,1756011037054,-300.0,0.00016999,2]
[381081229,1756011037064,-300.0,0.00016999,2]
[381081230,1756011037073,-300.0,0.00016999,2]
[381081231,1756011037083,-300.0,0.00016999,2]
[381081232,1756011037092,-300.0,0.00016999,2]
[381081233,1756011037103,-300.0,0.00016999,2]
[381081234,1756011037112,-51415.75756611,0.00017,2]
[381081235,1756011037123,-50397.67274759,0.00017,2]
[381081236,1756011037133,-5762.6947434,0.00017,2]
[381081237,1756011037143,-151.578717,0.00017,2]
[381081238,1756011037154,-300.0,0.00017,2]
[381081239,1756011037164,-151.0,0.00017,2]
[381081240,1756011037173,-151.0,0.00017,2]
[381081241,1756011037183,-755.862245,0.00017,2]
[381081242,1756011037195,-755.862245,0.00017,2]
[381081243,1756011037204,-755.862245,0.00017,2]
[381081244,1756011037214,-755.862245,0.00017,2]
[381081245,1756011037224,-755.862245,0.00017,2]
[381081246,1756011037234,-755.862245,0.00017,2]
[381081247,1756011037243,-755.862245,0.00017,2]
[381081248,1756011037253,-755.862251,0.00017,2]
[381081249,1756011037263,-247.174829,0.00017,2]
[381081250,1756011037273,-247.174829,0.00017,2]
[381081251,1756011037283,-247.174829,0.00017,2]
[381081252,1756011037293,-247.174829,0.00017,2]
[381081253,1756011037304,-247.174829,0.00017,2]
[381081254,1756011037314,-247.174829,0.00017,2]
[381081255,1756011037324,-247.174829,0.00017,2]
[381081256,1756011037334,-247.17482,0.00017,2]
[381081257,1756011037344,-151.0,0.00017,2]
[381081258,1756011037354,-151.0,0.00017,2]
[381081259,1756011037364,-151.0,0.00017,2]
[381081260,1756011037374,-151.0,0.00017,2]
[381081262,1756011037385,-187.993443,0.00017,2]
[381081264,1756011037394,-256.368255,0.00017,2]
[381081265,1756011037405,-256.368255,0.00017,2]
[381081266,1756011037416,-256.368255,0.00017,2]
[381081267,1756011037426,-256.368255,0.00017,2]
[381081268,1756011037436,-282.654485,0.00017,2]
[381081270,1756011037445,-282.654485,0.00017,2]
[381081271,1756011037455,-282.654485,0.00017,2]
[381081272,1756011037465,-282.654485,0.00017,2]
[381081273,1756011037475,-151.0,0.00017,2]
[381081274,1756011037485,-151.0,0.00017,2]
[381081275,1756011037495,-1085.0,0.00017005,2]
[381081276,1756011037504,-879.0,0.00017014,2]
[381081277,1756011037518,-500.0,0.00017014,2]
[381081278,1756011037527,-150.90354151,0.00017023,2]
[381081279,1756011037537,-156.65684742,0.00017033,2]
[381081280,1756011037547,-13418.16970594,0.00017173,2]
[381081281,1756011037557,-500.0,0.0001726,2]
[381081282,1756011037568,-500.0,0.0001726,2]
[381081283,1756011037578,-1152.0,0.00017269,2]
[381081284,1756011037589,-879.0,0.00017288,2]
[381081285,1756011037599,-500.0,0.00017288,2]
[381081286,1756011037609,-171.61539,0.00017293,2]
[381081287,1756011037619,-2000.0,0.000173,2]
[381081288,1756011037629,-179.0,0.0001733,2]
[381081289,1756011037639,-300.0,0.00017499,2]
[381081290,1756011037649,-300.0,0.00017499,2]
[381081291,1756011037659,-300.0,0.00017499,2]
[381081292,1756011037669,-300.0,0.00017499,2]
[381081293,1756011037679,-300.0,0.00017499,2]
[381081294,1756011037689,-300.0,0.00017499,2]
[381081295,1756011037699,-300.0,0.00017499,2]
[381081296,1756011037710,-300.0,0.00017499,2]
[381081297,1756011037719,-300.0,0.00017499,2]
[381081298,1756011037729,-300.0,0.00017499,2]
[381081299,1756011037739,-10222.02898099,0.000175,2]
[381081391,1756011038700,-662.94393352,0.000175,2]
[381081393,1756011038711,-502.24893493,0.000175,2]
[381081397,1756011038737,-8612.77815056,0.000175,2]
[381081399,1756011038746,-1000.0,0.00017521,2]
[381081401,1756011038755,-500.42238479,0.00017521,2]
[381081403,1756011038764,-150.71284387,0.00017521,2]
[381081405,1756011038775,-216.3019817,0.00017521,2]
[381081407,1756011038784,-232.99360306,0.00017521,2]
[381081409,1756011038794,-1000.0,0.00017521,2]
[381081411,1756011038804,-1000.0,0.00017521,2]
[381081413,1756011038814,-1000.0,0.00017521,2]
[381081415,1756011038824,-1000.0,0.00017521,2]
[381081417,1756011038835,-1000.0,0.00017521,2]
[381081419,1756011038845,-1000.0,0.00017521,2]
[381081422,1756011038856,-1000.0,0.00017521,2]
[381081424,1756011038867,-1000.42156554,0.00017521,2]
[381081426,1756011038877,-1000.14988192,0.00017521,2]
[381081428,1756011038887,-256.368255,0.00017521,2]
[381081430,1756011038897,-256.368255,0.00017521,2]
[381081432,1756011038906,-256.368255,0.00017521,2]
[381081434,1756011038917,-256.368249,0.00017521,2]
[381081436,1756011038928,-282.654485,0.00017521,2]
[381081438,1756011038938,-282.654485,0.00017521,2]
[381081440,1756011038948,-282.654485,0.00017521,2]
[381081442,1756011038958,-282.654479,0.00017521,2]
[381081444,1756011038968,-558.13,0.00017533,2]
[381081446,1756011038978,-500.0,0.00017534,2]
[381081448,1756011038987,-626.70361531,0.00017534,2]
[381081450,1756011038997,-879.0,0.00017562,2]
[381081452,1756011039006,-500.0,0.00017562,2]
[381081454,1756011039016,-177.88,0.00017568,2]
[381081456,1756011039025,-1069.01873803,0.00017695,2]
[381081458,1756011039035,-150.90354151,0.00017784,2]
[381081460,1756011039044,-200.0,0.000178,6]
[381081462,1756011039054,-500.0,0.00017808,2]
[381081464,1756011039064,-500.0,0.00017808,2]
[381081466,1756011039074,-320.74051982,0.00017811,2]
[381081468,1756011039083,-879.0,0.00017836,2]
[381081470,1756011039093,-500.0,0.00017836,2]
[381081472,1756011039102,-500.0,0.00017856,2]
[381081474,1756011039112,-1085.0,0.000179,2]
[381081476,1756011039122,-191.28897309,0.000179,2]
[381081478,1756011039131,-500.0,0.000179,6]
[381081480,1756011039140,-500.0,0.00017904,2]
[381081482,1756011039151,-500.0,0.00017952,2]
[381081484,1756011039160,-500.0,0.00017973,2]
[381081486,1756011039170,-500.0,0.00017973,2]
[381081488,1756011039180,-500.0,0.00017973,2]
[381081490,1756011039189,-500.0,0.00017973,2]
[381081492,1756011039199,-500.0,0.00017973,2]
[381081494,1756011039209,-300.0,0.00017999,2]
[381081496,1756011039218,-300.0,0.00017999,2]
[381081498,1756011039227,-300.0,0.00017999,2]
[381081500,1756011039237,-300.0,0.00017999,2]
[381081502,1756011039247,-300.0,0.00017999,2]
[381081504,1756011039256,-300.0,0.00017999,2]
[381081506,1756011039266,-300.0,0.00017999,2]
[381081509,1756011039275,-661477.94532634,0.00018,2]
[381081527,1756011041875,-1536.12,0.00013989,2]
[381081528,1756011041884,-700.37562594,0.0001399,2]
[381081529,1756011041895,-631.18603,0.0001399,2]
[381081564,1756011043316,-204.55834406,0.0001399,2]
[381081566,1756011043326,-163.901088,0.00013999,2]
[381081568,1756011043335,-150.0,0.00014199,3]
[381081570,1756011043345,-1536.12,0.0001529,2]
[381081572,1756011043355,-1536.12,0.00015946,2]
[381081574,1756011043364,-1152.7275572,0.00016963,2]
[381081576,1756011043375,-383.3924428,0.00016963,2]
[381081578,1756011043384,-6499.99093393,0.00018,2]
[381081580,1756011043396,-4128.63986883,0.00018,2]
[381081583,1756011043407,-4432.26839026,0.00018,2]
[381081585,1756011043418,-25779.98674012,0.00018,2]
[381081587,1756011043429,-67295.41323885,0.00018,2]
[381081589,1756011043440,-1363.68834929,0.00018,2]
[381081592,1756011043452,-7850.20749255,0.00018,2]
[381081593,1756011043461,-1827.28441682,0.00018,2]
[381081596,1756011043472,-2450.08099561,0.00018,2]
[381081598,1756011043483,-14022.93046599,0.00018,2]
[381081600,1756011043492,-2666.2,0.00018,2]
[381081602,1756011043501,-151.0,0.00018,2]
[381081604,1756011043511,-500.0,0.00018,2]
[381081606,1756011043524,-500.0,0.00018049,2]
[381081608,1756011043533,-1500.0,0.00018068,2]
[381081610,1756011043543,-1500.0,0.00018068,2]
[381081612,1756011043552,-1500.0,0.00018068,2]
[381081614,1756011043562,-1500.0,0.00018068,2]
[381081616,1756011043571,-1500.0,0.00018068,2]
[381081618,1756011043581,-1500.0,0.00018068,2]
[381081620,1756011043591,-1500.0,0.00018068,2]
[381081622,1756011043601,-851.39713778,0.00018068,2]
[381081624,1756011043610,-558.13,0.00018081,2]
[381081626,1756011043619,-425.09438905,0.00018082,2]
[381081628,1756011043628,-500.0,0.00018097,2]
[381081630,1756011043637,-879.0,0.0001811,2]
[381081632,1756011043646,-353.0191023,0.0001811,2]
[381081636,1756011043671,-1869.50000002,0.0001399,2]
[381081638,1756011043683,-1730.84596,0.0001399,2]
[381081640,1756011043698,-895.27403998,0.0001399,2]
[381081642,1756011043709,-146.9808977,0.0001811,2]
[381081644,1756011043718,-500.0,0.00018145,2]
[381081647,1756011043727,-500.0,0.00018193,2]
[381081649,1756011043736,-500.0,0.00018241,2]
[381081651,1756011043746,-500.0,0.00018289,2]
[381081653,1756011043755,-1000.0,0.00018322,2]
[381081655,1756011043765,-500.0,0.00018337,2]
[381081657,1756011043775,-406.0,0.00018377,2]
[381081659,1756011043784,-879.0,0.00018384,2]
[381081661,1756011043793,-137.66601102,0.00018384,2]
[381081663,1756011043804,-362.33398898,0.00018384,2]
[381081665,1756011043817,-500.0,0.00018385,2]
[381081667,1756011043827,-49.08038587,0.0001839,2]
[381081681,1756011045052,-2312.15499099,0.0001839,2]
[381081682,1756011045065,-7399.73536083,0.0001839,2]
[381081683,1756011045081,-2279.11946,0.0001839,2]
[381081692,1756011046843,-151.0,0.00014723,2]
[381081693,1756011046852,-1000.0,0.00017658,2]
[381081694,1756011046863,-1378.07950825,0.0001839,2]
[381081695,1756011046872,-152.0,0.00018398,3]
[381081696,1756011046881,-500.0,0.00018433,2]
[381081697,1756011046891,-500.0,0.00018481,2]
[381081698,1756011046900,-351.0,0.0001852,2]
[381081699,1756011046909,-678.35121723,0.00018521,2]
[381081700,1756011046918,-1000.0,0.00018521,2]
[381081701,1756011046927,-1000.0,0.00018521,2]
[381081702,1756011046936,-1000.5470574,0.00018521,2]
[381081703,1756011046946,-1000.0,0.00018521,2]
[381081704,1756011046955,-500.0,0.00018529,2]
[381081705,1756011046964,-150.90354151,0.00018546,2]
[381081706,1756011046973,-340.98665036,0.00018567,2]
[381081707,1756011046982,-500.0,0.00018577,2]
[381081708,1756011046991,-2000.60454399,0.00018616,2]
[381081709,1756011047000,-2000.0,0.00018616,2]
[381081710,1756011047009,-808.32745228,0.00018616,2]
[381081711,1756011047018,-718.44762364,0.00018616,2]
[381081712,1756011047027,-2000.0,0.00018616,2]
[381081713,1756011047037,-2000.0,0.00018616,2]
[381081714,1756011047046,-245.9301359,0.00018616,2]
[381081715,1756011047055,-500.0,0.00018625,2]
[381081716,1756011047064,-558.13,0.00018629,2]
[381081717,1756011047073,-879.0,0.00018657,2]
[381081718,1756011047082,-197.19004858,0.00018657,2]
[381081719,1756011047091,-500.0,0.00018673,2]
[381081720,1756011047100,-500.0,0.00018721,2]
[381081721,1756011047110,-500.0,0.0001877,2]
[381081722,1756011047120,-156.0,0.000188,3]